bitfinex-derivatives/quotes_BTCF0:USTF0_20250929
["timestamp","ask_amount","ask_price","bid_price","bid_amount"]
[1759154369418,2.32341418,113330.0,113320.0,0.01342]
[1759154369710,1.92325418,113330.0,113320.0,0.01342]
[1759154369916,0.93358078,113330.0,113320.0,0.03548]
[1759154370117,0.4484,113320.0,113300.0,0.0128]
[1759154370324,0.10833463,113320.0,113310.0,0.01342]
[1759154370620,1.57102638,113320.0,113310.0,0.01342]
[1759154370814,2.29262638,113320.0,113310.0,0.01342]
[1759154371020,2.69262638,113320.0,113310.0,0.01342]
[1759154371220,0.088209,113310.0,113300.0,0.0128]
[1759154371522,0.99426075,113310.0,113300.0,0.0128]
[1759154371710,0.99426075,113310.0,113300.0,0.0158]
[1759154372314,1.93137537,113310.0,113300.0,0.0158]
[1759154372616,2.00004452,113310.0,113300.0,0.03486]
[1759154372916,1.00271552,113310.0,113300.0,0.1230768]
[1759154373120,0.43030915,113310.0,113300.0,0.03486]
[1759154373418,2.0532099,113310.0,113300.0,0.04186]
[1759154373620,2.0528099,113310.0,113300.0,0.04186]
[1759154373924,2.0532099,113310.0,113300.0,0.0198]
[1759154374117,2.07337369,113310.0,113300.0,0.0198]
[1759154374519,1.52112194,113310.0,113300.0,0.0198]
[1759154374720,2.07337369,113310.0,113300.0,0.0198]
[1759154375109,1.16433369,113310.0,113300.0,0.04186]
[1759154375315,2.07229369,113310.0,113300.0,0.04186]
[1759154375515,2.07189369,113310.0,113300.0,0.0198]
[1759154376219,2.07229369,113310.0,113300.0,0.0198]
[1759154376433,0.16307294,113310.0,113300.0,0.1300768]
[1759154376720,0.09356379,113310.0,113300.0,1.08232855]
[1759154376920,0.09356379,113310.0,113300.0,0.8908768]
[1759154377114,0.09316379,113310.0,113300.0,0.8908768]
[1759154377326,0.09356379,113310.0,113300.0,0.8908768]
[1759154377517,0.09356379,113310.0,113300.0,0.5300768]
[1759154377717,0.09356379,113310.0,113300.0,0.8908768]
[1759154378019,0.71702509,113310.0,113300.0,0.1300768]
[1759154378222,0.16477334,113310.0,113300.0,0.4908768]
[1759154378721,1.06120955,113310.0,113300.0,0.8908768]
[1759154379112,1.06080955,113310.0,113300.0,0.8908768]
[1759154379319,1.08164619,113310.0,113300.0,0.8908768]
[1759154379518,0.09383664,113310.0,113300.0,0.4908768]
[1759154379721,0.09383664,113310.0,113300.0,0.8899968]
[1759154379920,0.09343664,113310.0,113300.0,0.8899968]
[1759154380425,0.09383664,113310.0,113300.0,0.4899968]
[1759154381716,0.0734,113310.0,113300.0,0.8899968]
[1759154381920,0.09384211,113310.0,113300.0,0.4899968]
[1759154382926,0.09384211,113310.0,113300.0,1.44224855]
[1759154383226,0.09384445,113310.0,113300.0,1.44224855]
[1759154383416,0.09344445,113310.0,113300.0,0.40178]
[1759154383618,0.7343044,113310.0,113300.0,0.129196]
[1759154383818,0.18205265,113310.0,113300.0,0.129196]
[1759154384121,0.18205265,113310.0,113300.0,0.529196]
[1759154384122,0.6460962,113310.0,113300.0,0.529196]
[1759154386120,0.6460962,113310.0,113300.0,0.889996]
[1759154386517,0.6456962,113310.0,113300.0,0.889996]
[1759154386722,0.09344445,113310.0,113300.0,0.889996]
[1759154386923,0.6460962,113310.0,113300.0,0.889996]
[1759154387219,0.6460962,113310.0,113300.0,0.489996]
[1759154388224,0.6460962,113310.0,113300.0,0.889996]
[1759154388421,0.6456962,113310.0,113300.0,0.889996]
[1759154388616,0.09344445,113310.0,113300.0,0.889996]
[1759154388822,0.09384445,113310.0,113300.0,0.889996]
[1759154389121,0.09344445,113310.0,113300.0,0.889996]
[1759154389425,0.09384445,113310.0,113300.0,0.889996]
[1759154390030,0.6460962,113310.0,113300.0,0.889996]
[1759154390228,0.09384445,113310.0,113300.0,0.889996]
[1759154390528,0.6460962,113310.0,113300.0,0.889996]
[1759154393532,0.09384445,113310.0,113300.0,0.889996]
[1759154393730,0.6460962,113310.0,113300.0,0.889996]
[1759154393930,0.62565175,113310.0,113300.0,0.889996]
[1759154394234,0.62565175,113310.0,113300.0,0.867936]
[1759154394534,0.62565175,113310.0,113300.0,0.02005]
[1759154394535,1.68657339,113310.0,113300.0,0.02005]
[1759154394833,0.0882153,113300.0,113290.0,0.1221323]
[1759154395033,1.1927188,113300.0,113290.0,0.1221323]
[1759154395229,0.55225175,113300.0,113290.0,0.1221323]
[1759154396230,0.62225175,113300.0,113290.0,0.1291323]
[1759154396834,0.62265175,113300.0,113290.0,0.1291323]
[1759154397025,0.62225175,113300.0,113290.0,0.1291323]
[1759154397230,0.62265175,113300.0,113290.0,0.1291323]
[1759154397424,0.55265175,113300.0,113290.0,0.1221323]
[1759154397636,0.0364,113300.0,113290.0,0.1261323]
[1759154397832,0.58865175,113300.0,113290.0,0.1261323]
[1759154398033,0.0364,113300.0,113290.0,0.1261323]
[1759154398333,0.58865175,113300.0,113290.0,0.1727129]
[1759154399233,0.60911638,113300.0,113290.0,0.1261323]
[1759154399630,0.05686463,113300.0,113290.0,0.1261323]
[1759154399830,0.60911638,113300.0,113290.0,0.1261323]
[1759154400330,0.0364,113300.0,113290.0,2.36946405]
[1759154400635,0.036,113300.0,113290.0,2.41604465]
[1759154400830,0.55305175,113320.0,113310.0,0.01305]
[1759154401032,0.02125832,113320.0,113310.0,0.4832075]
[1759154401535,0.02045832,113320.0,113310.0,0.4832075]
[1759154401731,0.02085832,113320.0,113310.0,0.4832075]
[1759154402037,0.55225175,113330.0,113320.0,0.1223998]
[1759154402334,0.57270768,113330.0,113320.0,0.4831998]
[1759154403133,0.02045593,113330.0,113320.0,0.4831998]
[1759154403335,0.91385175,113340.0,113330.0,0.122392]
[1759154403542,0.38204719,113340.0,113330.0,0.122392]
[1759154403839,0.088192,113330.0,113320.0,0.03508]
[1759154404044,0.93349941,113330.0,113320.0,0.03508]
[1759154404234,0.93349941,113330.0,113320.0,0.1232798]
[1759154405042,0.39624766,113330.0,113320.0,0.1232798]
[1759154405241,0.94849941,113330.0,113320.0,0.1232798]
[1759154405542,1.98069131,113330.0,113320.0,0.01393]
[1759154405740,2.38069131,113330.0,113320.0,0.01393]
[1759154405930,2.29249941,113330.0,113320.0,0.01393]
[1759154406134,2.29249941,113330.0,113320.0,0.1232797]
[1759154406135,2.27749941,113330.0,113320.0,0.1232797]
[1759154406450,2.36569131,113330.0,113320.0,0.1232797]
[1759154407047,0.0882127,113310.0,113290.0,0.0807806]
[1759154407252,0.0882127,113310.0,113300.0,0.01305]
[1759154407551,0.57300341,113310.0,113300.0,0.0342]
[1759154407749,1.29460341,113310.0,113300.0,0.0342]
[1759154408052,1.38281091,113310.0,113300.0,0.0342]
[1759154408440,1.29460341,113310.0,113300.0,0.1012653]
[1759154408641,0.93380341,113310.0,113300.0,0.1224153]
[1759154408840,0.91305175,113310.0,113300.0,0.1224153]
[1759154409044,0.3848,113310.0,113300.0,0.1234153]
[1759154409253,0.93705175,113310.0,113300.0,0.1234153]
[1759154409452,1.0084235,113310.0,113300.0,0.1234153]
[1759154409649,0.9844235,113310.0,113300.0,0.1224153]
[1759154409952,1.0174235,113310.0,113300.0,0.1244153]
[1759154410157,1.0174235,113310.0,113300.0,0.1274153]
[1759154410158,1.0658235,113310.0,113300.0,0.1274153]
[1759154410655,0.7046235,113310.0,113300.0,0.1274153]
[1759154410952,0.6240235,113310.0,113300.0,0.1224153]
[1759154411355,0.07177175,113310.0,113300.0,0.4832153]
[1759154411558,0.0004,113310.0,113300.0,0.4832153]
[1759154412055,1.87541175,113320.0,113310.0,0.1012575]
[1759154412353,0.91385175,113320.0,113310.0,0.0342]
[1759154412653,1.89634635,113320.0,113310.0,0.1224075]
[1759154413053,1.98454605,113320.0,113310.0,0.0342]
[1759154413252,1.89634635,113320.0,113310.0,0.1224075]
[1759154414254,0.93426635,113320.0,113310.0,0.1224075]
[1759154414456,1.3412146,113320.0,113310.0,0.1224075]
[1759154414752,1.3416146,113320.0,113310.0,0.1224075]
[1759154414955,1.93086635,113320.0,113310.0,0.1304075]
[1759154415156,2.00486635,113320.0,113310.0,0.1304075]
[1759154415956,1.4526146,113320.0,113310.0,0.1304075]
[1759154416153,0.66365175,113320.0,113310.0,0.4912075]
[1759154416554,0.66325175,113320.0,113310.0,0.4912075]
[1759154416755,1.62069175,113320.0,113310.0,0.4912075]
[1759154417254,0.1114,113320.0,113310.0,0.4912075]
[1759154417451,0.111,113320.0,113310.0,0.4912075]
[1759154417650,0.1114,113320.0,113310.0,0.4912075]
[1759154417954,0.111,113320.0,113310.0,0.9377881]
[1759154418155,0.1114,113320.0,113310.0,0.9377881]
[1759154418350,0.1114,113320.0,113310.0,0.94641392]
[1759154418560,0.111,113320.0,113310.0,0.94641392]
[1759154418751,0.1114,113320.0,113310.0,0.94641392]
[1759154419145,0.1114,113320.0,113310.0,0.9377881]
[1759154419348,0.1114,113320.0,113310.0,0.8912075]
[1759154419545,0.66365175,113320.0,113310.0,0.8912075]
[1759154419950,0.1114,113320.0,113310.0,0.8912075]
[1759154420155,0.1114,113320.0,113310.0,0.9377881]
[1759154420453,0.50785058,113350.0,113340.0,0.1223342]
[1759154420656,1.48273453,113350.0,113340.0,0.1223342]
[1759154421256,1.48313453,113350.0,113340.0,0.1223342]
[1759154421559,1.48313453,113350.0,113340.0,0.4831342]
[1759154422848,0.52865453,113350.0,113340.0,0.4831342]
[1759154423053,0.52825453,113350.0,113340.0,0.4831342]
[1759154423253,0.52865453,113350.0,113340.0,0.4831342]
[1759154423452,0.52865453,113350.0,113340.0,0.4931342]
[1759154423854,0.52865453,113350.0,113340.0,0.5101342]
[1759154424053,0.09002762,113350.0,113340.0,0.5001342]
[1759154424261,0.52865453,113350.0,113340.0,0.5401342]
[1759154424660,0.52865453,113350.0,113340.0,0.4831342]
[1759154424857,0.52865453,113350.0,113340.0,0.5051342]
[1759154425363,0.50825058,113350.0,113340.0,0.5051342]
[1759154425959,0.06962367,113350.0,113340.0,0.5051342]
[1759154426162,0.50825058,113350.0,113340.0,0.5051342]
[1759154426761,0.06962367,113350.0,113340.0,0.5051342]
[1759154427058,0.06922367,113350.0,113340.0,0.5051342]
[1759154427249,0.0004,113350.0,113340.0,0.5051342]
[1759154427455,1.38722691,113360.0,113350.0,0.1223264]
[1759154427656,1.38802691,113360.0,113350.0,0.1223264]
[1759154428160,1.45682134,113360.0,113350.0,0.1223264]
[1759154430058,1.01819443,113360.0,113350.0,0.1353264]
[1759154430258,1.45682134,113360.0,113350.0,0.2153264]
[1759154431465,0.50822134,113360.0,113350.0,0.2153264]
[1759154431860,1.45286134,113360.0,113350.0,0.5761264]
[1759154432057,0.06959443,113360.0,113350.0,0.5761264]
[1759154432555,0.06879443,113360.0,113350.0,0.5761264]
[1759154432761,0.43902691,113360.0,113350.0,0.5761264]
[1759154433065,0.51011337,113360.0,113350.0,0.5761264]
[1759154433568,0.51011337,113360.0,113350.0,0.1223264]
[1759154433773,0.51011337,113360.0,113350.0,0.5301264]
[1759154435466,0.07148646,113360.0,113350.0,0.5301264]
[1759154435970,0.51011337,113360.0,113350.0,0.5301264]
[1759154436364,0.07148646,113360.0,113350.0,0.5301264]
[1759154436567,0.51011337,113360.0,113350.0,0.5301264]
[1759154437973,0.07148646,113360.0,113350.0,0.5301264]
[1759154438167,0.51011337,113360.0,113350.0,0.5301264]
[1759154439473,0.07148646,113360.0,113350.0,0.5301264]
[1759154439668,0.51011337,113360.0,113350.0,0.5301264]
[1759154440966,0.07148646,113360.0,113350.0,0.5301264]
[1759154441166,0.51011337,113360.0,113350.0,0.5301264]
[1759154441674,0.59828197,113360.0,113350.0,0.1693264]
[1759154441873,0.51011337,113360.0,113350.0,0.1693264]
[1759154442274,0.87364347,113360.0,113350.0,0.1693264]
[1759154442572,0.51284347,113360.0,113350.0,0.1693264]
[1759154442970,0.87364347,113360.0,113350.0,0.1693264]
[1759154443276,1.64727958,113360.0,113350.0,0.047]
[1759154443768,0.0881763,113350.0,113340.0,0.01289]
[1759154444070,0.0881763,113350.0,113330.0,0.00088]
[1759154444071,0.0881841,113340.0,113330.0,0.00088]
[1759154444276,1.17580862,113340.0,113330.0,0.0890719]
[1759154444475,1.17580862,113340.0,113330.0,0.00088]
[1759154444872,1.57580862,113340.0,113330.0,0.00088]
[1759154445171,1.55780862,113340.0,113330.0,0.00088]
[1759154445363,0.8514318,113340.0,113330.0,0.1019619]
[1759154445568,2.49336862,113340.0,113330.0,0.1019619]
[1759154445871,2.49292862,113340.0,113330.0,0.1019619]
[1759154446072,2.49292862,113340.0,113330.0,0.1010819]
[1759154446272,0.0881919,113330.0,113320.0,0.1010862]
[1759154446474,0.88775272,113330.0,113320.0,0.1010862]
[1759154446675,0.88775272,113330.0,113320.0,0.1010897]
[1759154447571,1.82187272,113330.0,113320.0,0.1010897]
[1759154447771,1.82087272,113330.0,113320.0,0.1010897]
[1759154447975,1.86087272,113330.0,113320.0,0.1020897]
[1759154448177,0.95575272,113330.0,113320.0,0.1040897]
[1759154448579,1.88823272,113330.0,113320.0,0.1040897]
[1759154448773,1.88823272,113330.0,113320.0,0.1253497]
[1759154448969,0.86756082,113330.0,113320.0,0.1253497]
[1759154449174,1.88823272,113330.0,113320.0,0.1253497]
[1759154449376,1.88751272,113330.0,113320.0,0.1253497]
[1759154449871,0.4288,113330.0,113320.0,0.1253497]
[1759154450178,1.79916082,113330.0,113320.0,0.1253497]
[1759154450378,1.88735272,113330.0,113320.0,0.003]
[1759154451075,2.28735272,113330.0,113320.0,0.003]
[1759154451578,2.28583272,113330.0,113320.0,0.0911997]
[1759154451781,2.28583272,113330.0,113320.0,0.01616]
[1759154452374,2.28583272,113330.0,113320.0,0.003]
[1759154452775,2.30629687,113330.0,113320.0,0.003]
[1759154453075,1.86753605,113330.0,113320.0,0.003]
[1759154453378,0.0881997,113320.0,113310.0,0.00088]
[1759154453575,0.88776052,113320.0,113310.0,0.00088]
[1759154453976,1.3783997,113320.0,113310.0,0.01404]
[1759154454177,1.3782397,113320.0,113310.0,0.1237975]
[1759154454480,1.88829099,113320.0,113310.0,0.1237975]
[1759154454682,1.88829099,113320.0,113310.0,0.03559]
[1759154454872,1.88829099,113320.0,113310.0,0.02204]
[1759154455379,1.88965099,113320.0,113310.0,0.02204]
[1759154455582,1.88965099,113320.0,113310.0,0.00088]
[1759154455776,1.89365099,113320.0,113310.0,0.06104]
[1759154455978,0.96261099,113320.0,113310.0,0.06104]
[1759154456178,1.89237099,113320.0,113310.0,0.1492474]
[1759154456379,1.89237099,113320.0,113310.0,0.06104]
[1759154456574,0.95861099,113320.0,113310.0,0.01404]
[1759154456777,1.45117017,113320.0,113310.0,0.1637974]
[1759154456977,0.43505047,113320.0,113310.0,0.1637974]
[1759154457287,0.96201099,113320.0,113310.0,0.1637974]
[1759154457484,1.89285099,113320.0,113310.0,0.1637974]
[1759154457684,1.89325099,113320.0,113310.0,0.1637974]
[1759154457885,1.89325099,113320.0,113310.0,0.1422474]
[1759154458284,1.89277099,113320.0,113310.0,0.1422474]
[1759154458677,1.45401017,113320.0,113310.0,0.1422474]
[1759154458876,1.89277099,113320.0,113310.0,0.1422474]
[1759154459084,1.55209858,113320.0,113310.0,0.1637974]
[1759154459284,1.91289858,113320.0,113310.0,0.1422474]
[1759154460287,0.98245858,113320.0,113310.0,0.05404]
[1759154460580,1.91201858,113320.0,113310.0,0.1413674]
[1759154460788,1.47197766,113320.0,113310.0,0.1629174]
[1759154460986,1.91073848,113320.0,113310.0,0.1629174]
[1759154461186,1.82253888,113320.0,113310.0,0.1629174]
[1759154461388,1.38317806,113320.0,113310.0,0.1629174]
[1759154461580,1.38277806,113320.0,113310.0,0.1629174]
[1759154461781,1.47137766,113320.0,113310.0,0.1629174]
[1759154462089,1.91013848,113320.0,113310.0,0.1629174]
[1759154462782,1.91013848,113320.0,113310.0,0.05316]
[1759154462988,1.91013848,113320.0,113310.0,0.1413674]
[1759154463188,1.91013848,113320.0,113310.0,0.05316]
[1759154463489,1.91012821,113320.0,113310.0,0.04]
[1759154463689,1.91012821,113320.0,113310.0,0.1282074]
[1759154463986,1.91012821,113320.0,113310.0,0.05316]
[1759154464389,1.91012821,113320.0,113310.0,0.1413674]
[1759154465786,1.91012821,113320.0,113310.0,0.05316]
[1759154466090,2.31012821,113320.0,113310.0,0.04]
[1759154467491,1.87136739,113320.0,113310.0,0.04]
[1759154467678,2.31012821,113320.0,113310.0,0.04]
[1759154468291,2.57847329,113320.0,113310.0,0.04]
[1759154469397,0.0882074,113310.0,113300.0,0.06935]
[1759154469688,1.17655062,113310.0,113300.0,0.06935]
[1759154470089,2.09951062,113310.0,113300.0,0.06935]
[1759154470384,0.46944472,113310.0,113300.0,0.06935]
[1759154470584,2.09735062,113310.0,113300.0,0.06935]
[1759154470993,2.09671062,113310.0,113300.0,0.06935]
[1759154471383,2.09671062,113310.0,113300.0,0.02119]
[1759154471587,0.0882152,113300.0,113290.0,0.01289]
[1759154471792,1.38348547,113300.0,113290.0,0.122663]
[1759154472093,1.35820815,113300.0,113290.0,0.122663]
[1759154472285,1.37860122,113300.0,113290.0,0.122663]
[1759154472893,1.35820815,113300.0,113290.0,0.122663]
[1759154473090,1.36020815,113300.0,113290.0,0.105113]
[1759154473288,1.38935397,113300.0,113290.0,0.105113]
[1759154473688,0.44391482,113300.0,113290.0,0.101113]
[1759154473895,1.36335482,113300.0,113290.0,0.101113]
[1759154474092,1.36279482,113300.0,113290.0,0.101113]
[1759154474296,1.28153962,113300.0,113290.0,0.122663]
[1759154474592,0.36269962,113300.0,113290.0,0.122663]
[1759154474792,0.92806667,113300.0,113290.0,0.122663]
[1759154474996,0.92766667,113300.0,113290.0,0.122663]
[1759154475196,0.36229962,113300.0,113290.0,0.122663]
[1759154475394,1.28133962,113300.0,113290.0,0.122663]
[1759154475590,1.28125962,113300.0,113290.0,0.483463]
[1759154475990,0.92770667,113300.0,113290.0,0.483463]
[1759154476193,1.28125962,113300.0,113290.0,0.483463]
[1759154476993,0.00914667,113300.0,113290.0,0.883463]
[1759154477199,1.28129962,113300.0,113290.0,0.883463]
[1759154477404,0.94814693,113300.0,113290.0,0.883463]
[1759154477703,1.30117988,113300.0,113290.0,0.883463]
[1759154478086,0.38309988,113300.0,113290.0,0.883463]
[1759154478285,0.0004,113300.0,113290.0,0.883463]
[1759154478490,0.91776,113300.0,113290.0,1.23701595]
[1759154478690,0.35435295,113310.0,113300.0,0.122725]
[1759154478893,1.27199295,113310.0,113300.0,0.483525]
[1759154479092,1.27119295,113310.0,113300.0,0.483525]
[1759154479293,1.27159295,113310.0,113300.0,0.483525]
[1759154479695,0.91804,113310.0,113300.0,0.483525]
[1759154479992,1.29359295,113310.0,113300.0,0.493525]
[1759154480195,1.30359295,113310.0,113300.0,0.493525]
[1759154480394,0.0324,113310.0,113300.0,1.24707795]
[1759154480695,0.0324,113310.0,113300.0,0.893525]
[1759154480895,0.0324,113310.0,113300.0,1.24707795]
[1759154481097,0.032,113310.0,113300.0,1.24707795]
[1759154481295,0.0324,113310.0,113300.0,1.24707795]
[1759154481597,0.032,113310.0,113300.0,1.24707795]
[1759154481795,7e-08,113310.0,113300.0,1.24707795]
[1759154481988,0.35355295,113340.0,113330.0,0.08819]
[1759154482196,0.97763728,113340.0,113330.0,0.4835]
[1759154482400,1.33960963,113340.0,113330.0,0.4835]
[1759154482700,1.34000963,113340.0,113330.0,0.4835]
[1759154483393,1.42819353,113340.0,113330.0,0.4835]
[1759154483600,1.42819353,113340.0,113330.0,0.1227]
[1759154483795,1.43719353,113340.0,113330.0,0.1247]
[1759154484699,1.34900963,113340.0,113330.0,0.1247]
[1759154485090,1.43719353,113340.0,113330.0,0.1247]
[1759154485403,0.73065727,113340.0,113330.0,0.1247]
[1759154485602,1.43719353,113340.0,113330.0,0.1247]
[1759154486599,1.34900963,113340.0,113330.0,0.1247]
[1759154486796,1.34002059,113340.0,113330.0,0.1247]
[1759154487001,0.02980433,113340.0,113330.0,0.4855]
[1759154487201,0.02980433,113340.0,113330.0,0.8855]
[1759154487400,0.38307246,113340.0,113330.0,1.23876813]
[1759154487997,0.02940433,113340.0,113330.0,1.23876813]
[1759154488202,0.38267246,113340.0,113330.0,1.23876813]
[1759154488399,0.37367246,113340.0,113330.0,1.23676813]
[1759154488704,0.37607246,113340.0,113330.0,1.24976813]
[1759154489001,0.37407246,113340.0,113330.0,1.23676813]
[1759154489303,0.02180433,113340.0,113330.0,0.8905]
[1759154489498,0.37507246,113340.0,113330.0,0.8905]
[1759154489801,0.37407246,113340.0,113330.0,1.23676813]
[1759154490003,0.37607246,113340.0,113330.0,1.24976813]
[1759154490803,0.02180433,113340.0,113330.0,0.4905]
[1759154491192,0.72834059,113340.0,113330.0,0.4905]
[1759154491393,0.02180433,113340.0,113330.0,0.4905]
[1759154491602,0.72834059,113340.0,113330.0,0.4905]
[1759154491803,0.02180433,113340.0,113330.0,0.4905]
[1759154492006,0.72834059,113340.0,113330.0,0.4905]
[1759154492803,0.72834059,113340.0,113330.0,0.1297]
[1759154493399,0.02180433,113340.0,113330.0,0.1297]
[1759154493603,0.72834059,113340.0,113330.0,0.4905]
[1759154494704,0.37507246,113340.0,113330.0,0.8905]
[1759154494909,0.37507246,113340.0,113330.0,1.24376813]
[1759154495108,0.37467246,113340.0,113330.0,1.24376813]
[1759154495408,0.37507246,113340.0,113330.0,1.24376813]
[1759154495805,0.02180433,113340.0,113330.0,1.24376813]
[1759154496000,0.37507246,113340.0,113330.0,1.24376813]
[1759154496200,0.72834059,113340.0,113330.0,0.8905]
[1759154496407,0.02180433,113340.0,113330.0,0.8905]
[1759154496607,0.72834059,113340.0,113330.0,0.8905]
[1759154497005,0.02180433,113340.0,113330.0,0.8905]
[1759154497209,0.02180433,113340.0,113330.0,1.24376813]
[1759154497413,0.72834059,113340.0,113330.0,0.8905]
[1759154497613,0.72834059,113340.0,113330.0,1.24376813]
[1759154498022,0.02180433,113340.0,113330.0,1.24376813]
[1759154498212,3e-08,113340.0,113330.0,1.24376813]
[1759154498518,0.15156727,113360.0,113350.0,0.1226861]
[1759154498519,0.95006464,113360.0,113350.0,0.1226861]
[1759154498710,1.30413277,113360.0,113350.0,0.1226861]
[1759154499511,1.71673277,113360.0,113350.0,0.1226861]
[1759154499712,1.72173277,113360.0,113350.0,0.1226861]
[1759154500117,1.72573277,113360.0,113350.0,0.1226861]
[1759154500616,0.78742272,113360.0,113350.0,0.1226861]
[1759154500815,0.98752646,113360.0,113350.0,0.1226861]
[1759154501017,2.89629915,113360.0,113350.0,0.01279]
[1759154501218,2.9279692,113360.0,113350.0,0.01279]
[1759154501420,2.97597996,113360.0,113350.0,0.01279]
[1759154501818,2.57597996,113360.0,113350.0,0.01279]
[1759154504017,1.66933996,113360.0,113350.0,0.01279]
[1759154504224,2.5279292,113360.0,113350.0,0.1009661]
[1759154504534,1.14069085,113360.0,113350.0,0.1226861]
[1759154505026,2.04645085,113360.0,113350.0,0.1226861]
[1759154505330,2.04685085,113360.0,113350.0,0.1226861]
[1759154505529,0.08048646,113360.0,113350.0,0.1226861]
[1759154505728,0.78702272,113360.0,113350.0,0.1226861]
[1759154506024,1.69314272,113360.0,113350.0,0.1226861]
[1759154506230,1.69354272,113360.0,113350.0,0.1226861]
[1759154506418,1.78171102,113360.0,113350.0,0.1226861]
[1759154506829,1.07517476,113360.0,113350.0,0.1226861]
[1759154507129,1.69354272,113360.0,113350.0,0.1226861]
[1759154507324,2.13497915,113360.0,113350.0,0.1226861]
[1759154508131,2.9274492,113360.0,113350.0,0.01279]
[1759154509629,2.0209292,113360.0,113350.0,0.01279]
[1759154509826,2.9273692,113360.0,113350.0,0.01279]
[1759154510329,2.96404576,113360.0,113350.0,0.01279]
[1759154510526,0.0881761,113350.0,113340.0,0.01154735]
[1759154510727,1.56085621,113350.0,113340.0,0.01154735]
[1759154511732,1.56085621,113350.0,113340.0,0.01254735]
[1759154511933,1.56085621,113350.0,113340.0,0.01354735]
[1759154512428,2.46725621,113350.0,113340.0,0.01354735]
[1759154513221,1.56085621,113350.0,113340.0,0.10173115]
[1759154513427,2.11394808,113350.0,113340.0,0.10173115]
[1759154513928,2.11394808,113350.0,113340.0,0.01354735]
[1759154514325,2.11395306,113350.0,113340.0,0.10173115]
[1759154514528,2.11395306,113350.0,113340.0,0.12383115]
[1759154515033,1.20759306,113350.0,113340.0,0.12383115]
[1759154515331,2.11391306,113350.0,113340.0,0.12383115]
[1759154515532,2.11391306,113350.0,113340.0,0.01354735]
[1759154516936,2.46718119,113350.0,113340.0,0.01354735]
[1759154517136,1.56086119,113350.0,113340.0,0.10173115]
[1759154517336,2.11383306,113350.0,113340.0,0.10173115]
[1759154518041,2.11387306,113350.0,113340.0,0.10173115]
[1759154519143,1.20759306,113350.0,113340.0,0.10173115]
[1759154519441,2.11383306,113350.0,113340.0,0.10173115]
[1759154520237,0.0520807,113350.0,113340.0,0.48463115]
[1759154520447,0.37360896,113350.0,113340.0,0.88463115]
[1759154520638,0.37360896,113350.0,113340.0,1.23789928]
[1759154520843,0.02074083,113350.0,113340.0,1.23789928]
[1759154521143,0.07108646,113360.0,113350.0,0.1240759]
[1759154521330,0.35326813,113360.0,113350.0,1.23814403]
[1759154521537,1.25934813,113360.0,113350.0,1.23814403]
[1759154521845,1.25974813,113360.0,113350.0,1.23814403]
[1759154522042,0.0004,113360.0,113350.0,1.23814403]
[1759154522243,0.0004,113360.0,113350.0,0.8848759]
[1759154522643,0.07141593,113360.0,113350.0,0.8848759]
[1759154523144,0.07441593,113360.0,113350.0,0.8848759]
[1759154523342,0.07914415,113380.0,113370.0,0.1240604]
[1759154523543,0.05700442,113390.0,113380.0,0.1240526]
[1759154523847,0.95393076,113390.0,113380.0,0.4848526]
[1759154524036,0.05685049,113390.0,113380.0,0.8848526]
[1759154524241,0.60887266,113390.0,113380.0,0.8848526]
[1759154524546,0.60003293,113390.0,113380.0,0.8848526]
[1759154524740,0.04841076,113390.0,113380.0,0.8848526]
[1759154524945,0.60003293,113390.0,113380.0,0.8848526]
[1759154525146,0.62103293,113390.0,113380.0,0.8868526]
[1759154525451,0.63203293,113390.0,113380.0,0.8878526]
[1759154525949,0.15143605,113390.0,113380.0,0.8878526]
[1759154526138,0.10342529,113390.0,113380.0,0.8878526]
[1759154526337,0.65504746,113390.0,113380.0,0.8878526]
[1759154527151,0.62504746,113390.0,113380.0,0.8848526]
[1759154528349,0.97902529,113390.0,113380.0,0.8848526]
[1759154528744,0.62504746,113390.0,113380.0,0.8848526]
[1759154528949,1.53056746,113390.0,113380.0,0.8848526]
[1759154529446,0.07342529,113390.0,113380.0,0.8848526]
[1759154529648,0.0024,113390.0,113380.0,0.8848526]
[1759154530044,0.002,113390.0,113380.0,0.8848526]
[1759154530244,0.0024,113390.0,113380.0,0.8848526]
[1759154533445,0.02221324,113390.0,113380.0,0.8848526]
[1759154535346,0.02221324,113390.0,113380.0,1.7898126]
[1759154535849,0.57383541,113390.0,113380.0,0.8848526]
[1759154536353,0.57383541,113390.0,113380.0,0.4848526]
[1759154537354,0.02221324,113390.0,113380.0,0.4848526]
[1759154540351,0.0024,113390.0,113380.0,0.4848526]
[1759154541351,0.55402217,113390.0,113380.0,0.4848526]
[1759154541551,0.0024,113390.0,113380.0,0.4848526]
[1759154544263,0.35530282,113390.0,113380.0,0.4848526]
[1759154545063,0.0024,113390.0,113380.0,0.4848526]
[1759154545259,0.35530282,113390.0,113380.0,0.4848526]
[1759154546064,0.0024,113390.0,113380.0,0.4848526]
[1759154546362,0.35530282,113390.0,113380.0,0.4848526]
[1759154550665,0.35530282,113390.0,113380.0,0.4857326]
[1759154551468,0.80424712,113390.0,113380.0,0.1249326]
[1759154551661,1.20424712,113390.0,113380.0,0.01468]
[1759154552067,1.20424712,113390.0,113380.0,0.1028321]
[1759154552466,2.10764712,113390.0,113380.0,0.1028321]
[1759154553070,0.35530282,113390.0,113380.0,0.1255821]
[1759154553363,0.35530282,113390.0,113380.0,0.4863821]
[1759154553569,1.25826282,113390.0,113380.0,0.4863821]
[1759154553865,1.25866282,113390.0,113380.0,0.4863821]
[1759154554071,1.25866282,113390.0,113380.0,0.1255821]
[1759154555173,1.34680712,113390.0,113380.0,0.1255821]
[1759154555867,0.35530282,113390.0,113380.0,0.1255821]
[1759154556169,0.35530282,113390.0,113380.0,0.4863821]
[1759154556673,1.25838282,113390.0,113380.0,0.4863821]
[1759154556973,0.35530282,113390.0,113380.0,0.4863821]
[1759154557271,0.44344712,113390.0,113380.0,0.03743]
[1759154557457,1.34644712,113390.0,113380.0,0.125582]
[1759154557857,0.9935443,113390.0,113380.0,0.125582]
[1759154558059,1.34644712,113390.0,113380.0,0.125582]
[1759154558979,1.34644712,113390.0,113380.0,0.01468]
[1759154558980,2.47993783,113390.0,113380.0,0.01468]
[1759154559272,2.10724712,113390.0,113380.0,0.01468]
[1759154559473,1.70724712,113390.0,113380.0,0.01468]
[1759154559679,1.70724712,113390.0,113380.0,0.102832]
[1759154560066,0.80424712,113390.0,113380.0,0.102832]
[1759154560375,1.70704712,113390.0,113380.0,0.102832]
[1759154560771,1.3541443,113390.0,113380.0,0.125582]
[1759154561075,1.70704712,113390.0,113380.0,0.125582]
[1759154563469,0.80424712,113390.0,113380.0,0.125582]
[1759154563966,1.34556712,113390.0,113380.0,0.125582]
[1759154564161,0.35530282,113390.0,113380.0,0.125582]